bitfinex/quotes_ETHUSD_20240716
["timestamp","ask_amount","ask_price","bid_price","bid_amount"]
[1721103962837,1.20809947,3473.7,3473.6,3.42885]
[1721103963037,1.84061935,3473.7,3473.6,3.42885]
[1721103965155,2.4101,3473.6,3473.3,2.87909]
[1721103965362,1.75051988,3473.5,3473.0,2.8793]
[1721103965550,0.63251988,3473.4,3473.0,2.8793]
[1721103965757,1.118,3473.3,3473.0,2.8793]
[1721103965952,2.87913,3473.3,3472.5,7.27]
[1721103966151,1.20809947,3473.5,3471.8,2.4017]
[1721103966152,1.118,3472.8,3471.8,2.4017]
[1721103966388,1.118,3472.8,3472.3,2.87985]
[1721103966389,0.63272445,3472.7,3472.3,2.87985]
[1721103966545,1.118,3472.8,3472.3,2.87985]
[1721103966746,0.63275254,3472.7,3472.3,2.87985]
[1721103967465,0.63275254,3472.7,3472.4,0.55]
[1721103968390,1.118,3472.6,3472.4,0.55]
[1721103968591,1.118,3472.6,3472.2,3.42999]
[1721103968592,0.2958852,3472.6,3472.2,3.42999]
[1721103968750,1.118,3472.7,3472.2,3.42999]
[1721103969094,0.63277944,3472.6,3472.2,3.42999]
[1721103969385,0.63279792,3472.5,3472.2,3.42999]
[1721103969587,1.118,3472.7,3472.2,3.42999]
[1721103969897,0.63279827,3472.6,3472.2,3.42999]
[1721103971449,0.63279827,3472.6,3472.2,0.55]
[1721103971652,0.63279827,3472.6,3472.1,0.55]
[1721103972350,2.3366,3472.5,3472.1,0.55]
[1721103972687,2.3366,3472.5,3472.0,0.55]
[1721103973454,0.44688211,3472.6,3472.0,3.43017]
[1721103973649,2.3256,3472.8,3472.0,3.43017]
[1721103973893,0.63279316,3472.7,3472.0,3.43017]
[1721103974694,0.63279316,3472.7,3472.0,6.31034]
[1721103975256,0.63279316,3472.7,3472.1,2.88008]
[1721103975463,2.3256,3472.8,3472.3,2.8799]
[1721103975885,0.6327635,3472.7,3472.4,0.55]
[1721103976398,2.3256,3472.8,3472.4,0.55]
[1721103976550,1.20809947,3473.0,3472.4,3.42984]
[1721103976756,0.63274311,3472.9,3472.4,3.42984]
[1721103977894,0.63274311,3472.9,3472.5,2.87974]
[1721103978100,1.20809947,3473.1,3472.6,3.4296]
[1721103978309,0.63266641,3473.0,3472.7,2.87958]
[1721103978601,1.50921865,3473.3,3472.7,2.87958]
[1721103978602,1.20809947,3473.3,3472.7,2.87958]
[1721103978778,2.2514,3473.4,3472.7,2.87958]
[1721103978987,1.83994225,3473.3,3472.7,2.87958]
[1721103979186,0.63263602,3473.2,3472.7,2.87958]
[1721103979484,0.63263602,3473.1,3472.8,3.4295]
[1721103979799,1.20734012,3473.4,3472.9,2.87938]
[1721103980003,4.50917515,3473.5,3472.9,2.87938]
[1721103980004,1.83995674,3473.3,3473.0,0.55]
[1721103980290,0.63261662,3473.2,3473.0,0.55]
[1721103980695,0.63261662,3473.1,3473.0,0.55]
[1721103980897,1.83995674,3473.3,3473.0,0.55]
[1721103981081,0.63261662,3473.2,3473.0,0.55]
[1721103981263,0.63261662,3473.1,3473.0,0.55]
[1721103981462,1.83995674,3473.3,3473.0,0.55]
[1721103981688,0.63261662,3473.2,3473.0,0.55]
[1721103981893,0.6326251,3473.2,3473.0,0.55]
[1721103982198,0.63262528,3473.1,3473.0,0.55]
[1721103982403,0.63262528,3473.2,3473.0,0.55]
[1721103983184,0.63262528,3473.2,3472.8,0.55]
[1721103984393,1.20734012,3473.0,3472.6,0.55]
[1721103984581,0.63262528,3472.9,3472.5,0.55]
[1721103984757,1.8399654,3472.9,3472.5,0.55]
[1721103985097,1.8399654,3472.9,3472.1,2.88003]
[1721103985098,0.63262528,3472.8,3472.1,2.88003]
[1721103985311,1.26556991,3472.7,3472.1,2.88003]
[1721103985607,0.63278679,3472.6,3472.1,3.816379]
[1721103985801,0.63278523,3472.7,3472.2,2.88]
[1721103987701,0.63278523,3472.7,3472.4,2.87978]
[1721103988137,0.63278387,3472.6,3472.4,2.87978]
[1721103988263,0.63278523,3472.7,3472.4,2.87978]
[1721103992939,0.63278523,3472.7,3472.2,2.88]
[1721103993103,0.63278523,3472.7,3472.3,0.55]
[1721103993298,0.63279403,3472.6,3472.3,0.55]
[1721103993600,0.63278523,3472.7,3472.3,0.55]
[1721103994001,0.63279204,3472.6,3472.3,0.55]
[1721103995036,0.63278523,3472.7,3472.3,0.55]
[1721103995599,0.63276675,3472.6,3472.3,0.55]
[1721103995802,0.63278523,3472.7,3472.3,0.55]
[1721103996246,0.63278875,3472.6,3472.3,0.55]
[1721103996735,0.63278523,3472.7,3472.3,0.55]
[1721103997211,0.63279204,3472.6,3472.3,0.55]
[1721103997719,0.63278523,3472.7,3472.3,0.55]
[1721103998610,0.63278523,3472.7,3472.3,4.060926]
[1721103998813,4.08719839,3473.0,3472.4,2.2516]
[1721103999007,0.63271483,3472.9,3472.4,2.2516]
[1721103999704,0.63271483,3472.9,3472.3,4.060926]
[1721103999913,0.63271483,3472.9,3472.3,3.42991]
[1721104000706,0.63271483,3472.9,3472.4,2.87984]
[1721104000946,0.63271483,3472.9,3472.5,0.55]
[1721104001156,2.32584839,3473.2,3472.5,3.42975]
[1721104001327,1.20784839,3473.1,3472.5,3.42975]
[1721104001529,0.63268251,3473.0,3472.5,3.42975]
[1721104002418,1.8405309,3473.0,3472.5,3.42975]
[1721104002613,0.63268251,3472.9,3472.5,3.42975]
[1721104003330,0.63268251,3472.8,3472.5,3.42975]
[1721104003544,1.20784839,3473.1,3472.5,3.42975]
[1721104003729,0.63271657,3473.0,3472.5,3.42975]
[1721104003931,1.84056496,3473.0,3472.5,3.42975]
[1721104004141,0.63271657,3472.9,3472.5,3.42975]
[1721104004657,0.63271777,3472.8,3472.5,3.42975]
[1721104004855,1.20810471,3473.0,3472.5,3.42975]
[1721104005165,1.20810471,3473.0,3472.5,0.55]
[1721104005166,1.84083045,3472.9,3472.5,0.55]
[1721104005464,0.63272574,3472.8,3472.4,0.55]
[1721104008071,3.60750471,3472.9,3472.4,0.55]
[1721104008246,1.84085987,3472.8,3472.4,0.55]
[1721104008557,0.63275627,3472.7,3472.4,0.55]
[1721104008744,3.60750471,3472.9,3472.4,0.55]
[1721104008745,0.63275627,3472.6,3472.4,0.55]
[1721104008946,3.60750471,3472.9,3472.4,0.55]
[1721104009146,1.8408698,3472.8,3472.4,0.55]
[1721104009325,0.63276509,3472.7,3472.4,0.55]
[1721104010230,0.63276509,3472.7,3472.3,0.55]
[1721104010756,1.8408698,3472.7,3472.3,0.55]
[1721104010956,0.63276509,3472.6,3472.3,0.55]
[1721104011162,0.63276466,3472.5,3472.3,0.55]
[1721104011460,0.63276407,3472.4,3472.3,3.42989]
[1721104011821,0.63276407,3472.6,3472.3,3.42989]
[1721104012024,0.63276407,3472.5,3472.3,3.42989]
[1721104012460,0.63276407,3472.4,3472.3,3.42989]
[1721104012841,0.63276407,3472.6,3472.3,3.42989]
[1721104013064,0.63276407,3472.5,3472.3,3.42989]
[1721104013263,0.63276407,3472.4,3472.3,0.55]
[1721104013475,0.63276407,3472.4,3471.9,2.88025]
[1721104013651,4.08934431,3472.7,3472.0,3.43017]
[1721104013861,0.63278041,3472.6,3472.0,3.43017]
[1721104014169,0.63278041,3472.6,3472.1,0.987761]
[1721104014473,0.63278041,3472.6,3472.2,0.55]
[1721104014676,0.63275993,3472.5,3472.2,0.55]
[1721104014839,0.63275993,3472.4,3472.2,0.55]
[1721104015036,1.20972902,3472.7,3472.2,0.55]
[1721104015241,0.63275087,3472.6,3472.2,0.55]
[1721104016248,0.63275087,3472.6,3472.3,2.436]
[1721104017858,2.87952,3472.8,3472.3,2.436]
[1721104018057,1.20983751,3472.5,3472.2,0.55]
[1721104018278,3.695341,3472.8,3472.2,0.55]
[1721104018478,1.84263836,3472.7,3472.2,0.55]
[1721104018659,1.84263836,3472.6,3472.2,0.55]
[1721104018973,0.63275954,3472.5,3472.2,0.55]
[1721104019393,0.63275954,3472.4,3472.2,1.429755]
[1721104019552,0.63275954,3472.3,3472.2,1.429755]
[1721104019755,0.63275954,3472.5,3472.2,1.429755]
[1721104019986,0.63275954,3472.4,3472.2,0.55]
[1721104020688,1.20987882,3472.5,3472.2,0.55]
[1721104020847,0.6328185,3472.4,3472.2,0.55]
[1721104021043,0.63282413,3472.3,3472.1,0.55]
[1721104021476,0.63282413,3472.3,3472.1,3.43009]
[1721104021878,1.21005186,3472.6,3472.1,3.43009]
[1721104022041,0.6327672,3472.5,3472.1,4.290265]
[1721104022245,1.84281906,3472.5,3472.1,4.290265]
[1721104022484,2.3994,3472.9,3472.1,4.290265]
[1721104022485,0.6327672,3472.4,3472.2,5.23771]
[1721104022686,0.6327672,3472.3,3472.2,5.23771]
[1721104022980,0.6327672,3472.3,3472.2,6.38416424]
[1721104023280,1.21005186,3472.7,3472.2,6.38410424]
[1721104023497,2.87917,3473.3,3472.5,2.87976]
[1721104023659,1.20988554,3472.8,3472.6,2.87962]
[1721104023861,0.63270118,3472.7,3472.6,2.87962]
[1721104024062,0.63270118,3472.7,3472.6,3.42962]
[1721104025967,0.63270118,3472.7,3472.6,0.55]
[1721104025968,1.84258672,3472.7,3472.6,0.55]
[1721104026166,2.17808108,3472.7,3472.5,0.55]
[1721104026370,0.63270118,3472.6,3472.0,2.88011]
[1721104026580,0.63270118,3472.6,3471.8,2.88032]
[1721104026581,2.32812715,3472.6,3471.8,2.88032]
[1721104026887,1.21014591,3472.4,3471.9,2.88025]
[1721104027054,0.63278825,3472.3,3471.9,2.88025]
[1721104027962,0.63278825,3472.3,3472.0,0.55]
[1721104028169,0.63278825,3472.2,3472.0,0.55]
[1721104028370,0.63278825,3472.1,3472.0,0.55]
[1721104028704,0.63278825,3472.3,3472.0,0.55]
[1721104028862,0.63278825,3472.2,3472.1,5.1941]
[1721104029070,1.21014591,3472.7,3472.5,2.87976]
[1721104029264,0.63268137,3472.6,3472.5,2.87976]
[1721104029467,0.63268137,3472.6,3472.5,3.42976]
[1721104029751,1.21014591,3472.7,3472.5,4.060729]
[1721104029976,1.21014591,3472.7,3472.6,0.55]
[1721104030477,0.63268445,3472.7,3472.6,0.55]
[1721104031720,1.84308729,3472.7,3472.6,0.55]
[1721104031876,0.63268445,3472.7,3472.6,0.55]
[1721104032279,1.84308172,3472.7,3472.6,0.55]
[1721104032509,0.63268445,3472.7,3472.6,0.55]
[1721104032705,0.63271507,3472.7,3472.6,0.55]
[1721104032907,1.84312066,3472.7,3472.6,0.55]
[1721104033081,1.5130117,3472.8,3472.6,0.55]
[1721104033281,0.63272503,3472.7,3472.6,0.55]
[1721104033480,1.84312407,3472.7,3472.6,0.55]
[1721104033704,0.63272503,3472.7,3472.6,0.55]
[1721104034385,2.14573673,3472.7,3472.6,0.55]
[1721104034684,2.14573673,3472.7,3472.4,0.55]
[1721104034879,1.21049141,3472.5,3472.4,0.55]
[1721104035220,0.63272503,3472.5,3472.1,5.19409]
[1721104035383,1.21053891,3472.4,3472.1,5.19409]
[1721104035584,0.63272503,3472.3,3472.1,5.19409]
[1721104036382,0.63279929,3472.2,3472.1,5.19409]
[1721104036893,0.63279929,3472.3,3472.1,5.74409]
[1721104037332,0.63279929,3472.2,3472.1,5.74409]
[1721104037499,0.63279929,3472.3,3472.1,5.74409]
[1721104037706,0.63279929,3472.2,3472.1,5.74409]
[1721104037926,4.69511404,3472.9,3472.1,5.74409]
[1721104037927,1.21053891,3472.7,3472.1,3.838243]
[1721104038080,0.63266856,3472.6,3472.4,2.87979]
[1721104038578,0.63266856,3472.6,3472.5,0.55]
[1721104039014,0.63266856,3472.6,3472.3,0.55]
[1721104039219,1.21037087,3472.5,3472.2,0.55]
[1721104039441,0.63266856,3472.4,3472.2,0.55]
[1721104039735,1.21037087,3472.5,3472.2,0.55]
[1721104039736,0.63275176,3472.3,3472.2,0.55]
[1721104040020,0.63275046,3472.4,3472.2,0.55]
[1721104040230,0.63275046,3472.3,3472.2,0.55]
[1721104040512,0.63275046,3472.4,3472.2,0.55]
[1721104040918,0.63275046,3472.3,3472.2,0.55]
[1721104041320,1.84311342,3472.5,3472.2,3.43]
[1721104041487,0.63275046,3472.4,3472.2,3.43]
[1721104041687,3.68936296,3472.7,3472.2,3.43]
[1721104041922,1.84307071,3472.6,3472.2,3.43]
[1721104042126,0.63270775,3472.5,3472.2,3.43]
[1721104042299,0.63270775,3472.4,3472.2,3.43]
[1721104042625,1.21036296,3472.7,3472.2,4.172818]
[1721104042922,0.63272096,3472.6,3472.2,4.172818]
[1721104043818,0.63272096,3472.6,3472.2,3.43]
[1721104043982,1.84308392,3472.6,3472.2,3.43]
[1721104044181,0.63272096,3472.5,3472.2,3.43]
[1721104045998,0.63274427,3472.4,3472.2,3.43]
[1721104046202,0.63274427,3472.3,3472.2,3.43]
[1721104046631,0.63274427,3472.5,3472.2,0.55]
[1721104046832,4.29260723,3472.5,3472.1,3.43006]
[1721104047038,0.63274427,3472.4,3472.1,3.43006]
[1721104047315,1.84310723,3472.4,3472.1,3.43006]
[1721104047504,0.63274427,3472.3,3472.1,3.43006]
[1721104047738,1.21036296,3472.6,3472.1,3.43006]
[1721104047933,0.63273528,3472.5,3472.2,2.88001]
[1721104048137,0.63273528,3472.5,3472.3,0.55]
[1721104049047,1.84309824,3472.5,3472.3,0.55]
[1721104049250,1.21036296,3472.5,3472.3,0.55]
[1721104049420,0.63275273,3472.4,3472.3,0.55]
[1721104049750,0.63275617,3472.4,3472.3,0.55]
[1721104051155,1.51311144,3472.7,3472.3,0.55]
[1721104051156,1.84311913,3472.5,3472.3,0.55]
[1721104051365,0.63275617,3472.4,3472.3,0.55]
[1721104052261,0.63276001,3472.4,3472.3,0.55]
[1721104052465,0.63275991,3472.4,3472.3,0.55]
[1721104053948,0.63275991,3472.5,3472.3,0.55]
[1721104054272,0.63275991,3472.4,3472.3,0.55]
[1721104054571,0.63275991,3472.5,3472.3,0.55]
[1721104054766,0.63275991,3472.4,3472.3,0.55]
[1721104055346,1.21036296,3472.6,3472.3,0.55]
[1721104055347,0.63275991,3472.5,3472.3,0.55]
[1721104055672,0.63275991,3472.4,3472.3,0.55]
[1721104055886,1.21036296,3472.6,3472.3,0.55]
[1721104055887,0.63271469,3472.5,3472.3,0.55]
[1721104056440,0.63271469,3472.5,3472.3,3.0082]
[1721104056741,0.63271469,3472.5,3472.4,2.87985]
[1721104056937,1.21036296,3472.8,3472.5,2.87973]
[1721104057167,0.63263545,3472.7,3472.6,0.55]
[1721104058861,1.84299841,3472.7,3472.6,0.55]
[1721104059059,1.84304333,3472.7,3472.6,0.55]
[1721104059278,0.63268037,3472.7,3472.6,0.55]
[1721104059595,1.84301265,3472.7,3472.6,0.55]
[1721104059749,0.63264969,3472.7,3472.5,0.55]
[1721104059966,0.63264969,3472.6,3472.5,0.55]
[1721104060164,1.84288516,3472.7,3472.5,0.55]
[1721104060366,0.63264969,3472.6,3472.5,0.55]
[1721104060904,1.84288516,3472.7,3472.5,0.55]
[1721104061104,0.63264969,3472.6,3472.5,0.55]
[1721104061807,1.84288516,3472.6,3472.5,0.55]
[1721104061984,0.63264969,3472.6,3472.5,0.55]
[1721104062185,0.63271089,3472.6,3472.5,0.55]
[1721104063780,0.63271089,3472.6,3472.5,3.42976]
[1721104064387,0.63271089,3472.7,3472.5,3.42976]
[1721104064792,1.21023547,3472.8,3472.5,3.42976]
[1721104065303,3.4972,3473.2,3472.5,3.42976]
[1721104065625,5.154725,3473.2,3472.5,3.42976]
[1721104066207,8.033925,3473.2,3472.5,3.42976]
[1721104066383,8.033925,3473.2,3472.5,0.55]
[1721104066583,6.915925,3473.2,3472.5,0.55]
[1721104066783,1.118,3473.1,3472.5,0.55]
[1721104067414,2.14974215,3473.1,3472.5,0.55]
[1721104068823,5.02902215,3473.1,3472.5,0.55]
[1721104070335,1.21019237,3472.7,3472.5,0.55]
[1721104070488,0.63269435,3472.6,3472.5,0.55]
[1721104071193,0.63269435,3472.6,3472.4,0.55]
[1721104071720,1.84288672,3472.6,3472.4,0.55]
[1721104071924,0.63269435,3472.5,3472.4,0.55]
[1721104072309,0.63269435,3472.5,3472.0,2.88016]
[1721104072487,0.63269435,3472.5,3472.1,0.55]
[1721104072488,1.84288672,3472.5,3472.1,0.55]
[1721104072690,0.63269435,3472.4,3472.1,0.55]
[1721104073589,0.6327784,3472.3,3472.1,0.55]
[1721104073822,0.6327784,3472.2,3472.1,0.55]
[1721104074036,0.63278902,3472.4,3472.1,0.55]
[1721104074584,0.63278902,3472.4,3472.1,3.43008]
[1721104076501,0.63278902,3472.3,3472.1,3.43008]
[1721104076710,1.21035564,3472.6,3472.1,4.413182]
[1721104077018,0.63270974,3472.5,3472.1,4.413182]
[1721104077197,0.63270974,3472.4,3472.1,4.413182]
[1721104077400,0.63270974,3472.3,3472.2,3.35353724]
[1721104077597,0.63272756,3472.5,3472.3,2.8799]
[1721104077795,0.63272301,3472.4,3472.3,2.8799]
[1721104078017,0.63272301,3472.4,3472.3,3.4299]
[1721104078488,0.63272301,3472.6,3472.3,3.4299]
[1721104078695,0.63272301,3472.6,3472.4,0.55]
[1721104078895,1.84307865,3472.6,3472.4,0.55]
[1721104079113,0.63272301,3472.5,3472.4,0.55]
[1721104079509,1.84307865,3472.5,3472.4,0.55]
[1721104081131,0.63272301,3472.5,3472.4,0.55]
[1721104081337,1.84307865,3472.5,3472.2,3.43001]
[1721104081501,0.63272301,3472.4,3472.2,3.43001]
[1721104082701,1.21035564,3472.5,3472.2,3.43001]
[1721104082904,0.63276211,3472.4,3472.2,3.43001]
[1721104083102,1.21035564,3472.5,3472.2,3.43001]
[1721104083327,0.63276734,3472.4,3472.2,3.43001]
[1721104083641,0.63276734,3472.4,3472.2,4.287978]
[1721104083841,0.63276734,3472.4,3472.3,2.87993]
[1721104084039,0.63276734,3472.6,3472.3,3.42993]
[1721104084248,0.63276734,3472.6,3472.4,0.55]
[1721104084406,0.63276734,3472.6,3472.5,2.3861]
[1721104084602,0.63276734,3472.6,3472.5,2.9361]
[1721104085905,0.63268874,3472.6,3472.5,2.9361]
[1721104086105,0.63268396,3472.6,3472.5,0.55]
[1721104086317,0.63268396,3472.6,3472.4,0.55]
[1721104088911,0.63268396,3472.6,3472.4,3.42983]
[1721104089451,1.21035564,3472.7,3472.4,3.42983]
[1721104089609,0.63268262,3472.6,3472.4,3.42983]
[1721104090531,1.84303826,3472.6,3472.4,3.42983]
[1721104090770,0.63268262,3472.5,3472.4,3.42983]
[1721104090936,0.63268262,3472.6,3472.4,3.42983]
[1721104091477,1.84303826,3472.6,3472.4,0.55]
[1721104091671,0.63268262,3472.5,3472.3,0.55]
[1721104091877,1.84303826,3472.5,3472.3,0.55]
[1721104092175,1.84303826,3472.4,3472.2,0.55]
[1721104092377,1.84303826,3472.3,3472.2,0.55]
[1721104092578,0.63268262,3472.3,3472.2,0.55]
[1721104092783,3.4849,3472.7,3472.0,3.43017]
[1721104093093,1.21039559,3472.3,3472.0,3.43017]
[1721104093249,0.63283483,3472.2,3472.0,3.43017]
[1721104093973,0.63283483,3472.1,3472.0,3.43017]
[1721104094656,0.63283483,3472.3,3472.0,3.43017]
[1721104095069,0.63283483,3472.3,3472.2,3.99801]
[1721104095273,1.51304455,3472.7,3472.4,2.87985]
[1721104095274,1.21039559,3472.7,3472.4,2.87985]
[1721104095469,0.63269265,3472.6,3472.5,0.55]
[1721104095958,1.21039559,3472.7,3472.5,0.55]
[1721104096159,0.63269384,3472.6,3472.5,0.55]
[1721104096988,1.84308943,3472.6,3472.5,0.55]
[1721104097195,1.84308943,3472.6,3472.3,3.42993]
[1721104097394,0.63269384,3472.5,3472.3,3.42993]
[1721104099115,0.63269384,3472.4,3472.3,3.42993]
[1721104099416,0.63271501,3472.4,3472.3,3.42993]
[1721104099578,0.63271501,3472.5,3472.3,3.42993]
[1721104099786,0.63271501,3472.4,3472.3,3.42993]
[1721104100121,1.8431106,3472.6,3472.3,0.55]
[1721104100323,0.63271501,3472.5,3472.2,0.55]
[1721104101990,1.20962106,3472.5,3471.7,2.8804]
[1721104102325,4.74169559,3472.2,3471.4,2.8806]
[1721104102636,1.84330198,3472.1,3471.5,2.88057]
[1721104102806,1.84330198,3472.1,3471.3,2.88073]
[1721104102807,5.84148198,3472.0,3471.3,2.88073]
[1721104103001,1.21039559,3471.7,3471.1,7.3891078]
[1721104103205,0.63298292,3471.6,3471.1,0.1191078]
[1721104103519,0.63298292,3471.6,3471.1,3.0000078]
[1721104103728,0.63298292,3471.5,3471.1,3.0000078]
[1721104104018,5.20874559,3471.8,3471.1,3.0000078]
[1721104104185,0.63300055,3471.7,3471.1,3.0000078]
[1721104104586,0.63300055,3471.7,3471.1,0.1191078]
[1721104104900,1.84339614,3471.7,3471.1,0.1191078]
[1721104105122,0.63300055,3471.6,3471.1,0.1191078]
[1721104105452,0.63300055,3471.6,3471.2,0.55]
[1721104105609,0.6330414,3471.5,3471.2,0.55]
[1721104105955,6.41024844,3471.8,3471.2,0.55]
[1721104106251,3.164922,3471.7,3471.2,0.55]
[1721104106406,0.63305512,3471.6,3471.2,0.55]
[1721104107552,3.51357512,3471.6,3471.2,0.55]
[1721104107718,3.5484,3471.4,3471.1,0.1191078]
[1721104107922,6.42909,3471.4,3471.1,0.1191078]
[1721104108136,3.99884,3471.2,3471.1,0.1191078]
[1721104108426,4.63197423,3471.2,3471.1,0.1191078]
[1721104108844,4.63204348,3471.2,3471.1,0.1191078]
[1721104109017,5.74738681,3471.2,3471.1,0.1191078]
[1721104109404,3.99619291,3471.2,3471.1,0.1191078]
[1721104114156,7.54459291,3471.2,3471.1,0.1191078]
[1721104116736,14.05878639,3471.2,3471.1,0.1191078]
[1721104116934,13.42543291,3471.2,3471.1,0.1191078]
[1721104118784,14.05876054,3471.2,3471.1,0.1191078]
[1721104119142,16.93960054,3471.2,3471.1,0.1191078]
[1721104119682,18.14400731,3471.2,3471.1,0.1191078]
[1721104120443,16.93960054,3471.2,3471.1,0.1191078]
[1721104120846,18.14400731,3471.2,3471.1,0.1191078]
[1721104121270,16.93960054,3471.2,3471.1,0.1191078]
[1721104121692,18.14400731,3471.2,3471.1,0.1191078]
[1721104121890,18.14412954,3471.2,3471.1,0.1191078]
[1721104122251,16.93972277,3471.2,3471.1,0.1191078]
[1721104123150,18.14412954,3471.2,3471.1,0.1191078]
[1721104123497,16.93972277,3471.2,3471.1,0.1191078]
[1721104125169,16.93971661,3471.2,3471.1,0.1191078]
[1721104125367,16.30627291,3471.2,3471.1,0.1191078]
[1721104135319,16.93972165,3471.2,3471.1,0.1191078]
[1721104136003,19.82056165,3471.2,3471.1,0.1191078]
[1721104136433,19.18711291,3471.2,3471.1,0.1191078]
[1721104136609,19.82058953,3471.2,3471.1,0.1191078]
[1721104141591,2.88176,3470.1,3469.6,2.387]
[1721104141790,1.118,3470.2,3469.6,2.387]
[1721104141791,2.88169,3470.2,3469.6,2.387]
[1721104142008,2.88169,3470.2,3469.8,2.481]
[1721104142697,3.99969,3470.2,3469.8,2.481]
[1721104143935,2.88169,3470.2,3469.8,2.481]
[1721104145033,3.99969,3470.2,3469.8,2.481]
[1721104145238,2.88201,3469.8,3469.5,2.481]
[1721104145439,2.8819,3470.0,3469.5,2.481]
[1721104147506,2.88194,3469.9,3469.5,2.481]
[1721104150615,2.88176,3470.1,3469.5,2.481]
[1721104150820,3.99976,3470.1,3469.5,2.481]
[1721104153565,3.9996,3470.3,3469.5,2.92234324]
[1721104153873,0.63304308,3470.2,3469.7,2.4261]
[1721104155955,3.9996,3470.3,3469.7,2.4261]
[1721104156156,0.63303105,3470.2,3469.7,2.4261]
[1721104158353,1.83929046,3470.2,3469.7,2.4261]
[1721104158552,0.63303105,3470.1,3469.7,2.4261]
[1721104159495,0.63306498,3470.0,3469.7,2.4261]
[1721104162494,1.83932439,3470.0,3469.7,2.4261]
[1721104162695,1.20625941,3470.1,3469.7,2.4261]
[1721104162866,0.63299559,3470.0,3469.7,2.4261]
[1721104163057,3.0,3470.4,3469.7,3.80029132]
[1721104163256,1.2090393,3470.1,3469.8,2.9761]
[1721104163589,0.63299163,3470.0,3469.8,5.85808]
[1721104163788,0.63299163,3470.0,3469.9,6.42602]
[1721104163961,1.2090393,3470.7,3470.6,2.88134]
[1721104164159,1.2090393,3470.7,3470.3,2.4261]
[1721104164160,1.75099571,3470.7,3470.3,2.4261]
[1721104164391,1.84203501,3470.6,3470.3,2.4261]
[1721104164552,0.63299571,3470.5,3470.3,2.4261]
[1721104164752,1.84203501,3470.5,3470.3,2.4261]
[1721104164966,2.62929913,3470.7,3470.3,2.4261]
[1721104164967,0.63299571,3470.4,3470.3,2.4261]
[1721104165305,0.63299571,3470.5,3470.3,2.4261]
[1721104165456,0.63299571,3470.4,3470.3,2.4261]
[1721104165657,1.81355896,3470.6,3470.3,2.4261]
[1721104166496,1.81355896,3470.5,3470.3,2.4261]
[1721104168864,1.81355896,3470.5,3470.3,2.3761]
[1721104169087,3.99918,3470.8,3470.3,2.3761]
[1721104169288,1.81431002,3470.5,3470.3,2.3761]
[1721104169499,1.118,3470.4,3470.3,2.3761]
[1721104170420,1.81431002,3470.5,3470.3,2.3761]
[1721104172326,1.118,3470.6,3470.3,2.3761]
[1721104172484,1.81435127,3470.5,3470.3,2.3761]
[1721104175790,1.81438975,3470.5,3470.3,2.3761]
[1721104176083,1.81438043,3470.5,3470.3,2.3761]
[1721104176311,1.81438043,3470.4,3470.3,2.3761]
[1721104176901,1.81438043,3470.4,3470.0,2.2993]
[1721104177115,1.5119669,3470.1,3470.0,2.2993]
[1721104179009,1.118,3470.4,3470.0,2.2993]
[1721104179324,1.51195883,3470.1,3470.0,2.2993]
[1721104182424,1.51207941,3470.1,3470.0,2.2993]
[1721104182587,1.51207941,3470.1,3469.8,2.3494]
[1721104182793,1.20969054,3469.9,3469.8,2.3494]
[1721104182993,1.20969054,3469.9,3469.8,2.8994]
[1721104185110,1.20969054,3469.9,3469.8,3.765771]
[1721104185635,1.20969054,3469.9,3469.5,2.3494]
[1721104185932,1.20957355,3469.7,3469.5,2.3494]
[1721104193126,1.20957355,3469.8,3469.5,2.3494]
[1721104195245,1.20957355,3469.7,3469.5,2.3494]
[1721104195445,1.20924122,3469.7,3469.5,2.3494]
[1721104196249,1.20924122,3469.8,3469.5,2.3494]
[1721104201157,1.20924122,3469.8,3469.3,5.18991]
[1721104201366,1.20924122,3469.8,3469.4,0.55]
[1721104202548,2.32724122,3469.8,3469.4,0.55]
[1721104202747,2.32724122,3469.8,3469.3,2.3075]
[1721104202748,1.118,3469.6,3469.3,2.3075]
[1721104203152,6.13006641,3469.8,3469.1,2.88258]
[1721104203333,6.13006641,3469.8,3469.0,5.17615]
[1721104203532,6.13006641,3469.8,3469.1,0.55]
[1721104203758,6.13006641,3469.8,3469.1,3.43258]
[1721104204072,1.20924122,3469.7,3469.1,3.43258]
[1721104205060,1.20924122,3469.8,3469.2,5.17599]
[1721104205238,1.20924122,3469.8,3469.3,0.55]
[1721104207039,1.20924122,3469.8,3469.3,3.43242]
[1721104208033,1.20818245,3469.8,3469.3,3.43242]
[1721104208534,1.118,3469.7,3469.3,0.55]
[1721104209076,3.57,3469.7,3469.3,0.55]
[1721104209236,4.77818245,3469.7,3469.3,0.55]
[1721104209438,3.57,3469.7,3469.3,0.55]
[1721104209665,4.77818245,3469.7,3469.3,0.55]
[1721104210970,1.20818245,3469.6,3469.3,0.55]
[1721104211179,1.20818245,3469.6,3469.4,2.3520443]
[1721104211346,1.20818245,3469.7,3469.6,5.17657]
[1721104211553,1.20818245,3470.1,3469.9,2.2944]
[1721104211889,1.20818245,3470.2,3469.9,2.2944]
[1721104212168,1.20818245,3470.2,3469.9,5.17627]
[1721104212679,1.20818245,3470.1,3469.9,5.17627]
[1721104213038,1.20818245,3470.2,3469.9,5.17627]
[1721104213362,1.20818245,3470.2,3470.0,2.88182]
[1721104213741,1.20818245,3470.1,3469.8,2.88201]
[1721104214081,1.20818245,3470.0,3469.9,0.55]
[1721104214435,1.20939003,3470.1,3469.9,0.55]
[1721104215068,1.20939003,3470.1,3469.7,2.88207]
[1721104215271,1.51172192,3470.2,3469.7,2.88207]
[1721104215272,1.20939003,3470.0,3469.8,0.55]
[1721104215480,1.20939003,3470.1,3469.8,3.43198]
[1721104216577,1.20939003,3470.0,3469.8,3.43198]
[1721104216870,1.20939003,3470.1,3469.8,3.43198]